[Event "Titled Tuesday Blitz January 03 Early 2023"]
[White "Erzhanov, Arman"]
[Black "Vokhidov, Shamsiddin"]
[WhiteFideId "4138821"]
[BlackFideId "14204223"]
[WhiteElo "2228"]
[BlackElo "2586"]
[Result "0-1"]
[Round "01"]
[TimeControl "180+2"]
[Date "2023.01.03"]
[WhiteClock "0:00:23"]
[BlackClock "0:00:24"]

1. e4 {[%clk 0:02:59]}  e5 {[%clk 0:02:58]} 2. Nf3 {[%clk 0:02:58]}  Nc6 {[%clk 0:02:59]} 3. Bb5 {[%clk 0:02:58]}  Nf6 {[%clk 0:02:59]} 4. O-O {[%clk 0:02:58]}  Nxe4 {[%clk 0:02:59]} 5. Re1 {[%clk 0:02:58]}  Nd6 {[%clk 0:02:59]} 6. Nxe5 {[%clk 0:02:59]}  Be7 {[%clk 0:03:00]} 7. Bf1 {[%clk 0:02:59]}  O-O {[%clk 0:03:00]} 8. d4 {[%clk 0:02:57]}  Nf5 {[%clk 0:03:00]} 9. c3 {[%clk 0:02:56]}  Nxe5 {[%clk 0:02:59]} 10. Rxe5 {[%clk 0:02:57]}  d5 {[%clk 0:02:56]} 11. Bd3 {[%clk 0:02:56]}  g6 {[%clk 0:02:51]} 12. Nd2 {[%clk 0:02:52]}  Bd6 {[%clk 0:02:49]} 13. Re1 {[%clk 0:02:52]}  Nh4 {[%clk 0:02:46]} 14. Nf3 {[%clk 0:02:45]}  Bg4 {[%clk 0:02:43]} 15. Be2 {[%clk 0:02:45]}  c6 {[%clk 0:02:36]} 16. h3 {[%clk 0:02:42]}  Bxf3 {[%clk 0:02:28]} 17. Bxf3 {[%clk 0:02:43]}  Qf6 {[%clk 0:02:28]} 18. Be2 {[%clk 0:02:17]}  Rfe8 {[%clk 0:02:27]} 19. Bf1 {[%clk 0:02:17]}  Bc7 {[%clk 0:02:18]} 20. Bd2 {[%clk 0:01:58]}  Bf4 {[%clk 0:01:41]} 21. Bxf4 {[%clk 0:01:48]}  Qxf4 {[%clk 0:01:42]} 22. Qg4 {[%clk 0:01:35]}  Qxg4 {[%clk 0:01:33]} 23. hxg4 {[%clk 0:01:35]}  f5 {[%clk 0:01:34]} 24. gxf5 {[%clk 0:01:27]}  Nxf5 {[%clk 0:01:35]} 25. Bd3 {[%clk 0:01:23]}  Nd6 {[%clk 0:01:33]} 26. Kf1 {[%clk 0:01:21]}  Kg7 {[%clk 0:01:33]} 27. Rxe8 {[%clk 0:01:21]}  Rxe8 {[%clk 0:01:34]} 28. Re1 {[%clk 0:01:21]}  Rxe1+ {[%clk 0:01:34]} 29. Kxe1 {[%clk 0:01:22]}  h5 {[%clk 0:01:34]} 30. Ke2 {[%clk 0:01:22]}  g5 {[%clk 0:01:34]} 31. Ke3 {[%clk 0:01:16]}  Kf6 {[%clk 0:01:33]} 32. b3 {[%clk 0:01:16]}  Nf5+ {[%clk 0:01:33]} 33. Kf3 {[%clk 0:01:13]}  Ng7 {[%clk 0:01:27]} 34. Kg3 {[%clk 0:01:09]}  Ne6 {[%clk 0:01:27]} 35. Kf3 {[%clk 0:01:08]}  g4+ {[%clk 0:01:24]} 36. Kg3 {[%clk 0:01:06]}  Kg5 {[%clk 0:01:24]} 37. Bf1 {[%clk 0:01:01]}  h4+ {[%clk 0:01:17]} 38. Kh2 {[%clk 0:01:01]}  Kf4 {[%clk 0:01:10]} 39. Be2 {[%clk 0:01:01]}  g3+ {[%clk 0:01:02]} 40. fxg3+ {[%clk 0:01:01]}  hxg3+ {[%clk 0:01:03]} 41. Kh3 {[%clk 0:00:48]}  Ng5+ {[%clk 0:01:01]} 42. Kh4 {[%clk 0:00:48]}  Ne4 {[%clk 0:01:02]} 43. c4 {[%clk 0:00:48]}  Nc3 {[%clk 0:01:02]} 44. Bf3 {[%clk 0:00:47]}  b6 {[%clk 0:00:37]} 45. cxd5 {[%clk 0:00:47]}  cxd5 {[%clk 0:00:37]} 46. a3 {[%clk 0:00:41]}  Nb5 {[%clk 0:00:29]} 47. Bxd5 {[%clk 0:00:39]}  Nxd4 {[%clk 0:00:30]} 48. b4 {[%clk 0:00:39]}  Nc2 {[%clk 0:00:30]} 49. b5 {[%clk 0:00:26]}  Nxa3 {[%clk 0:00:30]} 50. Bc6 {[%clk 0:00:27]}  Nc4 {[%clk 0:00:30]} 51. Bf3 {[%clk 0:00:24]}  Ne5 {[%clk 0:00:28]} 52. Bb7 {[%clk 0:00:23]}  Nf7 {[%clk 0:00:22]} 53. Kh5 {[%clk 0:00:20]}  Nd6 {[%clk 0:00:23]} 54. Bc6 {[%clk 0:00:20]}  Ke3 {[%clk 0:00:20]} 55. Kg4 {[%clk 0:00:19]}  Kf2 {[%clk 0:00:21]} 56. Kf4 {[%clk 0:00:18]}  Nxb5 {[%clk 0:00:15]} 57. Bxb5 {[%clk 0:00:18]}  Kxg2 {[%clk 0:00:16]} 58. Ke3 {[%clk 0:00:15]}  Kh2 {[%clk 0:00:16]} 59. Bc6 {[%clk 0:00:15]}  g2 {[%clk 0:00:16]} 60. Bxg2 {[%clk 0:00:15]}  Kxg2 {[%clk 0:00:17]} 61. Kd4 {[%clk 0:00:16]}  Kf3 {[%clk 0:00:18]} 62. Kc4 {[%clk 0:00:17]}  Ke4 {[%clk 0:00:19]} 63. Kb5 {[%clk 0:00:18]}  Kd4 {[%clk 0:00:19]} 64. Kb4 {[%clk 0:00:18]}  Kd3 {[%clk 0:00:18]} 65. Kb5 {[%clk 0:00:18]}  Kc3 {[%clk 0:00:19]} 66. Ka6 {[%clk 0:00:18]}  Kc4 {[%clk 0:00:20]} 67. Kxa7 {[%clk 0:00:18]}  b5 {[%clk 0:00:21]} 68. Kb6 {[%clk 0:00:19]}  b4 {[%clk 0:00:21]} 69. Ka5 {[%clk 0:00:20]}  b3 {[%clk 0:00:22]} 70. Ka4 {[%clk 0:00:20]}  b2 {[%clk 0:00:23]} 71. Ka5 {[%clk 0:00:21]}  b1=Q {[%clk 0:00:23]} 72. Ka6 {[%clk 0:00:22]}  Kc5 {[%clk 0:00:23]} 73. Ka7 {[%clk 0:00:23]}  Kc6 {[%clk 0:00:23]} 74. Ka8 {[%clk 0:00:23]}  Qb7# {[%clk 0:00:24]} 0-1


[Site "https://www.chess.com"]

[Event "Titled Tuesday Blitz January 03 Early 2023"]
[White "Jimenez Almeida, Luis David"]
[Black "Timofeev, Artyom"]
[WhiteFideId "22242244"]
[BlackFideId "4140419"]
[WhiteElo "2242"]
[BlackElo "2567"]
[Result "0-1"]
[Round "01"]
[TimeControl "180+2"]
[Date "2023.01.03"]
[WhiteClock "0:00:15"]
[BlackClock "0:00:23"]

1. e4 {[%clk 0:02:59]}  c5 {[%clk 0:02:59]} 2. Nc3 {[%clk 0:02:58]}  e6 {[%clk 0:02:56]} 3. Nge2 {[%clk 0:02:58]}  Nc6 {[%clk 0:02:55]} 4. d4 {[%clk 0:02:57]}  cxd4 {[%clk 0:02:55]} 5. Nxd4 {[%clk 0:02:58]}  Qc7 {[%clk 0:02:56]} 6. Be3 {[%clk 0:02:57]}  Nf6 {[%clk 0:02:55]} 7. Bd3 {[%clk 0:02:54]}  a6 {[%clk 0:02:53]} 8. O-O {[%clk 0:02:49]}  Be7 {[%clk 0:02:51]} 9. Qe2 {[%clk 0:02:48]}  O-O {[%clk 0:02:50]} 10. h3 {[%clk 0:02:45]}  d6 {[%clk 0:02:48]} 11. Rae1 {[%clk 0:02:44]}  Bd7 {[%clk 0:02:47]} 12. f4 {[%clk 0:02:43]}  b5 {[%clk 0:02:45]} 13. a3 {[%clk 0:02:33]}  Nxd4 {[%clk 0:02:41]} 14. Bxd4 {[%clk 0:02:34]}  e5 {[%clk 0:02:41]} 15. Be3 {[%clk 0:02:30]}  Rac8 {[%clk 0:02:37]} 16. Nd5 {[%clk 0:02:17]}  Nxd5 {[%clk 0:02:36]} 17. exd5 {[%clk 0:02:17]}  Bf6 {[%clk 0:02:33]} 18. c3 {[%clk 0:02:08]}  Rce8 {[%clk 0:02:30]} 19. Qf2 {[%clk 0:02:04]}  exf4 {[%clk 0:02:26]} 20. Bxf4 {[%clk 0:02:03]}  Be5 {[%clk 0:02:19]} 21. Kh1 {[%clk 0:01:38]}  h6 {[%clk 0:02:12]} 22. Bxe5 {[%clk 0:01:36]}  dxe5 {[%clk 0:02:09]} 23. Bf5 {[%clk 0:01:34]}  Bxf5 {[%clk 0:02:05]} 24. Qxf5 {[%clk 0:01:35]}  Qd6 {[%clk 0:02:05]} 25. Rd1 {[%clk 0:01:30]}  e4 {[%clk 0:02:02]} 26. Rfe1 {[%clk 0:01:30]}  Re5 {[%clk 0:01:58]} 27. Qf4 {[%clk 0:01:30]}  f5 {[%clk 0:01:58]} 28. Rd4 {[%clk 0:01:24]}  Rfe8 {[%clk 0:01:51]} 29. a4 {[%clk 0:01:20]}  g5 {[%clk 0:01:43]} 30. Qf1 {[%clk 0:01:16]}  e3 {[%clk 0:01:21]} 31. axb5 {[%clk 0:01:05]}  e2 {[%clk 0:01:07]} 32. Qf3 {[%clk 0:01:05]}  axb5 {[%clk 0:01:07]} 33. Rd2 {[%clk 0:01:05]}  g4 {[%clk 0:00:55]} 34. Qf4 {[%clk 0:00:36]}  Qf6 {[%clk 0:00:23]} 35. d6 {[%clk 0:00:28]}  Qh4 {[%clk 0:00:22]} 36. g3 {[%clk 0:00:14]}  Qxh3+ {[%clk 0:00:23]} 37. Kg1 {[%clk 0:00:15]}  Re3 {[%clk 0:00:23]} 0-1


[Site "https://www.chess.com"]

[Event "Titled Tuesday Blitz January 03 Early 2023"]
[White "Puranik, Abhimanyu"]
[Black "Mica, Marek"]
[WhiteFideId "5061245"]
[BlackFideId "382884"]
[WhiteElo "2613"]
[BlackElo "2256"]
[Result "1-0"]
[Round "01"]
[TimeControl "180+2"]
[Date "2023.01.03"]
[WhiteClock "0:00:10"]
[BlackClock "0:00:01"]

1. Nf3 {[%clk 0:03:00]}  d5 {[%clk 0:02:59]} 2. c4 {[%clk 0:02:57]}  e6 {[%clk 0:02:57]} 3. e3 {[%clk 0:02:57]}  Nf6 {[%clk 0:02:57]} 4. b3 {[%clk 0:02:57]}  b6 {[%clk 0:02:56]} 5. Bb2 {[%clk 0:02:57]}  Bb7 {[%clk 0:02:56]} 6. g3 {[%clk 0:02:50]}  Nbd7 {[%clk 0:02:53]} 7. Bg2 {[%clk 0:02:48]}  dxc4 {[%clk 0:02:49]} 8. bxc4 {[%clk 0:02:47]}  c5 {[%clk 0:02:48]} 9. O-O {[%clk 0:02:47]}  Be7 {[%clk 0:02:47]} 10. d3 {[%clk 0:02:46]}  O-O {[%clk 0:02:47]} 11. Nc3 {[%clk 0:02:46]}  a6 {[%clk 0:02:39]} 12. Qe2 {[%clk 0:02:45]}  Qc7 {[%clk 0:02:39]} 13. a4 {[%clk 0:02:44]}  Rab8 {[%clk 0:02:35]} 14. Ne1 {[%clk 0:02:37]}  Bxg2 {[%clk 0:02:35]} 15. Nxg2 {[%clk 0:02:37]}  Qc6 {[%clk 0:02:32]} 16. f4 {[%clk 0:02:30]}  Rfd8 {[%clk 0:02:28]} 17. g4 {[%clk 0:02:30]}  Nf8 {[%clk 0:02:19]} 18. g5 {[%clk 0:02:28]}  Ne8 {[%clk 0:02:16]} 19. h4 {[%clk 0:02:12]}  Nd6 {[%clk 0:02:13]} 20. h5 {[%clk 0:02:10]}  Nf5 {[%clk 0:02:13]} 21. Rfd1 {[%clk 0:02:09]}  h6 {[%clk 0:02:07]} 22. Qg4 {[%clk 0:02:03]}  hxg5 {[%clk 0:01:59]} 23. fxg5 {[%clk 0:02:02]}  Nd7 {[%clk 0:01:43]} 24. Ne4 {[%clk 0:01:49]}  b5 {[%clk 0:01:31]} 25. axb5 {[%clk 0:01:45]}  axb5 {[%clk 0:01:31]} 26. Nf6+ {[%clk 0:01:46]}  Bxf6 {[%clk 0:01:03]} 27. gxf6 {[%clk 0:01:42]}  bxc4 {[%clk 0:01:03]} 28. Bc3 {[%clk 0:01:35]}  Rb3 {[%clk 0:00:53]} 29. Rac1 {[%clk 0:01:33]}  Rxc3 {[%clk 0:00:49]} 30. Rxc3 {[%clk 0:01:32]}  Nxf6 {[%clk 0:00:49]} 31. Qxc4 {[%clk 0:01:28]}  Qf3 {[%clk 0:00:45]} 32. Rf1 {[%clk 0:01:20]}  Qxh5 {[%clk 0:00:42]} 33. Qxc5 {[%clk 0:01:11]}  Ng4 {[%clk 0:00:33]} 34. Qc7 {[%clk 0:01:11]}  Rd6 {[%clk 0:00:30]} 35. Rxf5 {[%clk 0:00:31]}  Qh2+ {[%clk 0:00:30]} 36. Kf1 {[%clk 0:00:31]}  Qh1+ {[%clk 0:00:29]} 37. Ke2 {[%clk 0:00:31]}  Qxg2+ {[%clk 0:00:27]} 38. Ke1 {[%clk 0:00:29]}  Qg3+ {[%clk 0:00:24]} 39. Kd2 {[%clk 0:00:28]}  exf5 {[%clk 0:00:20]} 40. Qc8+ {[%clk 0:00:28]}  Kh7 {[%clk 0:00:20]} 41. Qxf5+ {[%clk 0:00:28]}  Rg6 {[%clk 0:00:21]} 42. d4 {[%clk 0:00:26]}  Qf2+ {[%clk 0:00:20]} 43. Qxf2 {[%clk 0:00:26]}  Nxf2 {[%clk 0:00:21]} 44. Ke2 {[%clk 0:00:26]}  Ne4 {[%clk 0:00:21]} 45. Rc7 {[%clk 0:00:26]}  Rf6 {[%clk 0:00:21]} 46. Re7 {[%clk 0:00:25]}  Nd6 {[%clk 0:00:21]} 47. Kd3 {[%clk 0:00:24]}  Kg6 {[%clk 0:00:20]} 48. d5 {[%clk 0:00:24]}  Nf5 {[%clk 0:00:20]} 49. Re8 {[%clk 0:00:22]}  Rd6 {[%clk 0:00:19]} 50. e4 {[%clk 0:00:22]}  Ng3 {[%clk 0:00:19]} 51. Kc4 {[%clk 0:00:18]}  f5 {[%clk 0:00:16]} 52. e5 {[%clk 0:00:18]}  Ra6 {[%clk 0:00:17]} 53. d6 {[%clk 0:00:18]}  Ra4+ {[%clk 0:00:16]} 54. Kb5 {[%clk 0:00:18]}  Rd4 {[%clk 0:00:15]} 55. Kc5 {[%clk 0:00:17]}  Rd1 {[%clk 0:00:15]} 56. Kc6 {[%clk 0:00:17]}  Ne4 {[%clk 0:00:15]} 57. d7 {[%clk 0:00:16]}  f4 {[%clk 0:00:13]} 58. d8=Q {[%clk 0:00:11]}  Rxd8 {[%clk 0:00:13]} 59. Rxd8 {[%clk 0:00:11]}  f3 {[%clk 0:00:13]} 60. Rf8 {[%clk 0:00:11]}  f2 {[%clk 0:00:11]} 61. Rf4 {[%clk 0:00:11]}  Ng3 {[%clk 0:00:01]} 62. Rxf2 {[%clk 0:00:10]} 1-0


[Site "https://www.chess.com"]

[Event "Titled Tuesday Blitz January 03 Early 2023"]
[White "Andreev, Eduard"]
[Black "Svane, Rasmus"]
[WhiteFideId "14103400"]
[BlackFideId "4657101"]
[WhiteElo "2413"]
[BlackElo "2623"]
[Result "0-1"]
[Round "01"]
[TimeControl "180+2"]
[Date "2023.01.03"]
[WhiteClock "0:00:11"]
[BlackClock "0:00:24"]

1. e4 {[%clk 0:03:00]}  c6 {[%clk 0:02:58]} 2. d4 {[%clk 0:03:00]}  d5 {[%clk 0:02:58]} 3. Nd2 {[%clk 0:03:01]}  dxe4 {[%clk 0:02:57]} 4. Nxe4 {[%clk 0:03:02]}  Nf6 {[%clk 0:02:58]} 5. Nxf6+ {[%clk 0:03:02]}  exf6 {[%clk 0:02:59]} 6. c3 {[%clk 0:03:02]}  Bd6 {[%clk 0:02:58]} 7. Bd3 {[%clk 0:03:02]}  O-O {[%clk 0:02:59]} 8. Qc2 {[%clk 0:03:03]}  Re8+ {[%clk 0:03:00]} 9. Ne2 {[%clk 0:03:02]}  h5 {[%clk 0:03:00]} 10. Be3 {[%clk 0:03:02]}  Nd7 {[%clk 0:03:00]} 11. Ng3 {[%clk 0:02:58]}  Nb6 {[%clk 0:02:52]} 12. Nxh5 {[%clk 0:02:45]}  Nd5 {[%clk 0:02:52]} 13. O-O {[%clk 0:02:45]}  Nxe3 {[%clk 0:02:50]} 14. fxe3 {[%clk 0:02:45]}  Rxe3 {[%clk 0:02:51]} 15. Rae1 {[%clk 0:02:41]}  Rxe1 {[%clk 0:02:48]} 16. Rxe1 {[%clk 0:02:40]}  Bg4 {[%clk 0:02:48]} 17. Be2 {[%clk 0:02:26]}  Qd7 {[%clk 0:02:39]} 18. h3 {[%clk 0:02:12]}  Bxh5 {[%clk 0:02:28]} 19. Bxh5 {[%clk 0:02:11]}  Re8 {[%clk 0:02:15]} 20. Rxe8+ {[%clk 0:02:07]}  Qxe8 {[%clk 0:02:16]} 21. Qe2 {[%clk 0:02:06]}  Qd7 {[%clk 0:02:14]} 22. Bf3 {[%clk 0:02:05]}  f5 {[%clk 0:02:12]} 23. c4 {[%clk 0:01:56]}  g6 {[%clk 0:01:48]} 24. a3 {[%clk 0:01:50]}  Bf8 {[%clk 0:01:47]} 25. d5 {[%clk 0:01:39]}  cxd5 {[%clk 0:01:45]} 26. Bxd5 {[%clk 0:01:37]}  b6 {[%clk 0:01:31]} 27. b4 {[%clk 0:01:31]}  a5 {[%clk 0:01:31]} 28. Qb2 {[%clk 0:01:22]}  axb4 {[%clk 0:01:21]} 29. axb4 {[%clk 0:01:23]}  Qd6 {[%clk 0:01:21]} 30. Qc3 {[%clk 0:01:15]}  Bg7 {[%clk 0:01:19]} 31. Qd2 {[%clk 0:01:11]}  Qg3 {[%clk 0:01:11]} 32. Bf3 {[%clk 0:00:48]}  Bf6 {[%clk 0:00:51]} 33. c5 {[%clk 0:00:45]}  bxc5 {[%clk 0:00:51]} 34. bxc5 {[%clk 0:00:46]}  Bg5 {[%clk 0:00:49]} 35. Qc3 {[%clk 0:00:41]}  Bh4 {[%clk 0:00:38]} 36. Qd2 {[%clk 0:00:34]}  Qe5 {[%clk 0:00:30]} 37. Bd5 {[%clk 0:00:14]}  f4 {[%clk 0:00:24]} 38. c6 {[%clk 0:00:11]}  Qa1+ {[%clk 0:00:24]} 0-1


[Site "https://www.chess.com"]

[Event "Titled Tuesday Blitz January 03 Early 2023"]
[White "Dardha, Daniel"]
[Black "Fisher_TheGalactic"]
[WhiteFideId "240990"]
[WhiteElo "2631"]
[BlackElo "2521"]
[Result "1-0"]
[Round "01"]
[TimeControl "180+2"]
[Date "2023.01.03"]
[WhiteClock "0:00:21"]
[BlackClock "0:00:06"]

1. d4 {[%clk 0:02:58]}  d5 {[%clk 0:02:58]} 2. c4 {[%clk 0:02:58]}  e6 {[%clk 0:02:58]} 3. Nf3 {[%clk 0:02:57]}  Nf6 {[%clk 0:02:59]} 4. Nc3 {[%clk 0:02:57]}  Bb4 {[%clk 0:02:59]} 5. Qa4+ {[%clk 0:02:57]}  Nc6 {[%clk 0:02:58]} 6. a3 {[%clk 0:02:57]}  Bxc3+ {[%clk 0:02:59]} 7. bxc3 {[%clk 0:02:58]}  O-O {[%clk 0:02:58]} 8. Bg5 {[%clk 0:02:56]}  h6 {[%clk 0:02:57]} 9. Bh4 {[%clk 0:02:56]}  Bd7 {[%clk 0:02:57]} 10. Qc2 {[%clk 0:02:56]}  Qe7 {[%clk 0:02:52]} 11. e3 {[%clk 0:02:46]}  Rfe8 {[%clk 0:02:43]} 12. Bd3 {[%clk 0:02:42]}  Na5 {[%clk 0:02:37]} 13. Ne5 {[%clk 0:02:34]}  dxc4 {[%clk 0:02:35]} 14. Nxc4 {[%clk 0:02:19]}  Nxc4 {[%clk 0:02:33]} 15. Bxc4 {[%clk 0:02:20]}  c5 {[%clk 0:02:33]} 16. O-O {[%clk 0:02:19]}  Bc6 {[%clk 0:02:33]} 17. f3 {[%clk 0:02:15]}  cxd4 {[%clk 0:02:29]} 18. cxd4 {[%clk 0:02:16]}  Rac8 {[%clk 0:02:29]} 19. Qe2 {[%clk 0:02:15]}  Bd5 {[%clk 0:02:28]} 20. Bd3 {[%clk 0:01:56]}  Qd7 {[%clk 0:02:07]} 21. e4 {[%clk 0:01:29]}  Bc4 {[%clk 0:02:03]} 22. Bf2 {[%clk 0:01:20]}  Bxd3 {[%clk 0:02:01]} 23. Qxd3 {[%clk 0:01:21]}  Rc6 {[%clk 0:01:58]} 24. Rfc1 {[%clk 0:01:11]}  Rec8 {[%clk 0:01:57]} 25. Rxc6 {[%clk 0:01:11]}  Qxc6 {[%clk 0:01:58]} 26. g4 {[%clk 0:01:07]}  Qc3 {[%clk 0:01:57]} 27. Rd1 {[%clk 0:01:07]}  Qxd3 {[%clk 0:01:40]} 28. Rxd3 {[%clk 0:01:08]}  a6 {[%clk 0:01:40]} 29. a4 {[%clk 0:01:06]}  Rc4 {[%clk 0:01:33]} 30. Rb3 {[%clk 0:01:01]}  Rxa4 {[%clk 0:01:19]} 31. Rxb7 {[%clk 0:01:01]}  Ra1+ {[%clk 0:01:20]} 32. Kg2 {[%clk 0:01:01]}  a5 {[%clk 0:01:20]} 33. d5 {[%clk 0:00:51]}  exd5 {[%clk 0:01:17]} 34. e5 {[%clk 0:00:51]}  Nxg4 {[%clk 0:00:36]} 35. fxg4 {[%clk 0:00:52]}  Ra4 {[%clk 0:00:29]} 36. h3 {[%clk 0:00:48]}  Re4 {[%clk 0:00:29]} 37. Rb5 {[%clk 0:00:44]}  Rxe5 {[%clk 0:00:24]} 38. Rxa5 {[%clk 0:00:44]}  h5 {[%clk 0:00:25]} 39. Bg3 {[%clk 0:00:36]}  Rg5 {[%clk 0:00:18]} 40. Bf4 {[%clk 0:00:30]}  Rg6 {[%clk 0:00:16]} 41. g5 {[%clk 0:00:30]}  d4 {[%clk 0:00:13]} 42. Rd5 {[%clk 0:00:28]}  f6 {[%clk 0:00:08]} 43. Rd6 {[%clk 0:00:16]}  Kf7 {[%clk 0:00:08]} 44. h4 {[%clk 0:00:17]}  Ke7 {[%clk 0:00:06]} 45. Kf3 {[%clk 0:00:16]}  Kf7 {[%clk 0:00:02]} 46. Ke2 {[%clk 0:00:15]}  Ke7 {[%clk 0:00:02]} 47. Kd3 {[%clk 0:00:15]}  Kf7 {[%clk 0:00:03]} 48. Kxd4 {[%clk 0:00:15]}  fxg5 {[%clk 0:00:01]} 49. Rxg6 {[%clk 0:00:15]}  Kxg6 {[%clk 0:00:01]} 50. Bxg5 {[%clk 0:00:15]}  Kf5 {[%clk 0:00:02]} 51. Kd5 {[%clk 0:00:16]}  Kg6 {[%clk 0:00:02]} 52. Ke6 {[%clk 0:00:17]}  Kh7 {[%clk 0:00:03]} 53. Kf7 {[%clk 0:00:17]}  Kh8 {[%clk 0:00:03]} 54. Kg6 {[%clk 0:00:17]}  Kg8 {[%clk 0:00:03]} 55. Kxh5 {[%clk 0:00:18]}  Kh7 {[%clk 0:00:04]} 56. Bf4 {[%clk 0:00:18]}  g6+ {[%clk 0:00:04]} 57. Kg5 {[%clk 0:00:19]}  Kg7 {[%clk 0:00:05]} 58. Be5+ {[%clk 0:00:19]}  Kh7 {[%clk 0:00:06]} 59. Bd4 {[%clk 0:00:20]}  Kg8 {[%clk 0:00:06]} 60. Kxg6 {[%clk 0:00:21]} 1-0


[Site "https://www.chess.com"]

[Event "Titled Tuesday Blitz January 03 Early 2023"]
[White "Lenderman, Aleksandr"]
[Black "Ozates, Tuna"]
[WhiteFideId "2021285"]
[BlackFideId "6354521"]
[WhiteElo "2572"]
[BlackElo "2251"]
[Result "1-0"]
[Round "01"]
[TimeControl "180+2"]
[Date "2023.01.03"]
[WhiteClock "0:02:08"]
[BlackClock "0:01:17"]

1. e4 {[%clk 0:02:59]}  e5 {[%clk 0:02:59]} 2. Nf3 {[%clk 0:02:56]}  Nc6 {[%clk 0:02:59]} 3. Nc3 {[%clk 0:02:53]}  Nf6 {[%clk 0:02:58]} 4. Bb5 {[%clk 0:02:53]}  Bd6 {[%clk 0:02:57]} 5. d3 {[%clk 0:02:51]}  h6 {[%clk 0:02:56]} 6. O-O {[%clk 0:02:48]}  O-O {[%clk 0:02:56]} 7. a3 {[%clk 0:02:44]}  Re8 {[%clk 0:02:56]} 8. Bc4 {[%clk 0:02:44]}  Bf8 {[%clk 0:02:56]} 9. Re1 {[%clk 0:02:43]}  d6 {[%clk 0:02:56]} 10. h3 {[%clk 0:02:43]}  g6 {[%clk 0:02:55]} 11. Be3 {[%clk 0:02:42]}  Bg7 {[%clk 0:02:53]} 12. Qd2 {[%clk 0:02:42]}  g5 {[%clk 0:02:48]} 13. Nd5 {[%clk 0:02:42]}  Nxd5 {[%clk 0:02:47]} 14. Bxd5 {[%clk 0:02:41]}  Ne7 {[%clk 0:02:42]} 15. Ba2 {[%clk 0:02:41]}  Rf8 {[%clk 0:02:38]} 16. d4 {[%clk 0:02:37]}  Ng6 {[%clk 0:02:34]} 17. dxe5 {[%clk 0:02:32]}  Nxe5 {[%clk 0:02:34]} 18. Nxe5 {[%clk 0:02:32]}  Bxe5 {[%clk 0:02:29]} 19. f4 {[%clk 0:02:29]}  gxf4 {[%clk 0:02:29]} 20. Bxf4 {[%clk 0:02:29]}  Bxb2 {[%clk 0:02:25]} 21. Bxh6 {[%clk 0:02:13]}  Bxa1 {[%clk 0:02:14]} 22. Rxa1 {[%clk 0:02:14]}  Re8 {[%clk 0:02:04]} 23. Qf4 {[%clk 0:02:12]}  Kh7 {[%clk 0:01:40]} 24. Bg5 {[%clk 0:02:09]}  Qd7 {[%clk 0:01:17]} 25. Qh4+ {[%clk 0:02:08]} 1-0


[Site "https://www.chess.com"]

[Event "Titled Tuesday Blitz January 03 Early 2023"]
[White "Fiorito, Joaquin"]
[Black "Grigoriants, Sergey"]
[WhiteFideId "180173"]
[BlackFideId "4130804"]
[WhiteElo "2405"]
[BlackElo "2562"]
[Result "0-1"]
[Round "01"]
[TimeControl "180+2"]
[Date "2023.01.03"]
[WhiteClock "0:00:10"]
[BlackClock "0:00:49"]

1. d4 {[%clk 0:02:59]}  Nf6 {[%clk 0:02:59]} 2. Nc3 {[%clk 0:02:58]}  d5 {[%clk 0:02:59]} 3. Bf4 {[%clk 0:02:58]}  c5 {[%clk 0:02:56]} 4. e3 {[%clk 0:02:56]}  cxd4 {[%clk 0:02:54]} 5. exd4 {[%clk 0:02:57]}  a6 {[%clk 0:02:54]} 6. Nf3 {[%clk 0:02:56]}  Bg4 {[%clk 0:02:52]} 7. h3 {[%clk 0:02:55]}  Bh5 {[%clk 0:02:50]} 8. g4 {[%clk 0:02:55]}  Bg6 {[%clk 0:02:50]} 9. Ne5 {[%clk 0:02:55]}  Nc6 {[%clk 0:02:48]} 10. h4 {[%clk 0:02:11]}  Qb6 {[%clk 0:02:39]} 11. Nxc6 {[%clk 0:02:03]}  bxc6 {[%clk 0:02:38]} 12. h5 {[%clk 0:01:01]}  Qxb2 {[%clk 0:02:28]} 13. Na4 {[%clk 0:01:01]}  Qxc2 {[%clk 0:02:23]} 14. hxg6 {[%clk 0:01:00]}  Qe4+ {[%clk 0:02:23]} 15. Qe2 {[%clk 0:00:47]}  Qxh1 {[%clk 0:02:12]} 16. Nb6 {[%clk 0:00:41]}  Rd8 {[%clk 0:02:07]} 17. gxf7+ {[%clk 0:00:38]}  Kxf7 {[%clk 0:02:07]} 18. g5 {[%clk 0:00:27]}  Qe4 {[%clk 0:01:49]} 19. Be3 {[%clk 0:00:27]}  Ng4 {[%clk 0:01:42]} 20. O-O-O {[%clk 0:00:22]}  e5 {[%clk 0:01:26]} 21. Qxa6 {[%clk 0:00:17]}  Nxe3 {[%clk 0:01:26]} 22. Qb7+ {[%clk 0:00:17]}  Be7 {[%clk 0:01:25]} 23. fxe3 {[%clk 0:00:16]}  Qxe3+ {[%clk 0:01:25]} 24. Kc2 {[%clk 0:00:17]}  Qf2+ {[%clk 0:01:05]} 25. Kb1 {[%clk 0:00:13]}  Rb8 {[%clk 0:00:50]} 26. Qxc6 {[%clk 0:00:12]}  Rhd8 {[%clk 0:00:50]} 27. Bd3 {[%clk 0:00:10]}  Rd6 {[%clk 0:00:49]} 0-1


[Site "https://www.chess.com"]

[Event "Titled Tuesday Blitz January 03 Early 2023"]
[White "Baskakov, Egor"]
[Black "Bettalli, Francesco"]
[WhiteFideId "24197866"]
[BlackFideId "2816453"]
[WhiteElo "2215"]
[BlackElo "2252"]
[Result "1-0"]
[Round "01"]
[TimeControl "180+2"]
[Date "2023.01.03"]
[WhiteClock "0:01:05"]
[BlackClock "0:01:26"]

1. e4 {[%clk 0:03:00]}  e5 {[%clk 0:02:58]} 2. Nc3 {[%clk 0:03:00]}  Nc6 {[%clk 0:02:56]} 3. g3 {[%clk 0:03:00]}  g6 {[%clk 0:02:56]} 4. Bg2 {[%clk 0:03:00]}  Bg7 {[%clk 0:02:56]} 5. Nge2 {[%clk 0:03:01]}  Nge7 {[%clk 0:02:57]} 6. O-O {[%clk 0:03:01]}  O-O {[%clk 0:02:58]} 7. d3 {[%clk 0:03:02]}  d6 {[%clk 0:02:57]} 8. h3 {[%clk 0:03:02]}  Be6 {[%clk 0:02:57]} 9. Nd5 {[%clk 0:03:01]}  Qd7 {[%clk 0:02:56]} 10. Kh2 {[%clk 0:03:01]}  f5 {[%clk 0:02:55]} 11. f4 {[%clk 0:03:01]}  fxe4 {[%clk 0:02:50]} 12. dxe4 {[%clk 0:03:01]}  exf4 {[%clk 0:02:51]} 13. Nexf4 {[%clk 0:02:59]}  Bxd5 {[%clk 0:02:49]} 14. exd5 {[%clk 0:02:59]}  Ne5 {[%clk 0:02:49]} 15. Ne6 {[%clk 0:02:58]}  Rxf1 {[%clk 0:02:49]} 16. Qxf1 {[%clk 0:02:58]}  Nf5 {[%clk 0:02:46]} 17. g4 {[%clk 0:02:53]}  Ne7 {[%clk 0:02:43]} 18. Bg5 {[%clk 0:02:48]}  h6 {[%clk 0:02:36]} 19. Bf6 {[%clk 0:02:39]}  Nf5 {[%clk 0:02:21]} 20. gxf5 {[%clk 0:02:22]}  Bxf6 {[%clk 0:02:19]} 21. fxg6 {[%clk 0:02:22]}  Bg7 {[%clk 0:02:17]} 22. Qf5 {[%clk 0:02:19]}  Rf8 {[%clk 0:02:08]} 23. Qe4 {[%clk 0:02:09]}  Rf6 {[%clk 0:02:05]} 24. Rf1 {[%clk 0:02:05]}  Rxg6 {[%clk 0:01:53]} 25. Qh4 {[%clk 0:01:55]}  Kh7 {[%clk 0:01:35]} 26. Be4 {[%clk 0:01:48]}  Qe8 {[%clk 0:01:34]} 27. Qh5 {[%clk 0:01:29]}  Kh8 {[%clk 0:01:28]} 28. Bxg6 {[%clk 0:01:28]}  Nxg6 {[%clk 0:01:29]} 29. Rg1 {[%clk 0:01:24]}  Be5+ {[%clk 0:01:28]} 30. Kh1 {[%clk 0:01:24]}  Kh7 {[%clk 0:01:27]} 31. Qxg6+ {[%clk 0:01:19]}  Qxg6 {[%clk 0:01:28]} 32. Nf8+ {[%clk 0:01:19]}  Kg7 {[%clk 0:01:28]} 33. Nxg6 {[%clk 0:01:20]}  Bxb2 {[%clk 0:01:27]} 34. Nf4+ {[%clk 0:01:08]}  Kf6 {[%clk 0:01:27]} 35. Rb1 {[%clk 0:01:08]}  Bd4 {[%clk 0:01:26]} 36. Rxb7 {[%clk 0:01:06]}  Bb6 {[%clk 0:01:26]} 37. Ne6 {[%clk 0:01:05]}  Ke5 {[%clk 0:01:27]} 38. Nxc7 {[%clk 0:01:06]}  a5 {[%clk 0:01:26]} 39. Rxb6 {[%clk 0:01:05]} 1-0


[Site "https://www.chess.com"]